bitfinex/quotes_ETHUSD_20260302
["timestamp","ask_amount","ask_price","bid_price","bid_amount"]
[1772442698070,5.51544042,1959.2,1958.1,3.61611804]
[1772442698271,5.51544042,1959.2,1958.2,3.61611804]
[1772442698478,5.51544042,1959.2,1958.4,3.61588236]
[1772442699244,1.27603103,1959.2,1958.4,3.61588236]
[1772442699547,5.51544042,1959.2,1958.5,0.001]
[1772442699776,4.23940939,1959.0,1958.5,0.001]
[1772442700593,1.27622645,1958.9,1958.5,0.001]
[1772442700962,5.51563584,1958.9,1958.5,0.001]
[1772442701170,7.0825747,1958.9,1958.5,0.001]
[1772442701574,9.1345747,1958.9,1958.5,0.001]
[1772442702289,4.23940939,1958.8,1958.2,0.001]
[1772442702511,1.27642193,1958.6,1958.2,0.001]
[1772442702662,1.56693886,1958.4,1958.0,0.00153886]
[1772442702865,4.23940939,1958.3,1958.0,0.00153886]
[1772442703107,4.23940939,1958.3,1957.5,3.607962]
[1772442703402,4.23940939,1958.3,1957.2,3.61050086]
[1772442704368,4.23940939,1958.4,1957.3,3.60585338]
[1772442704513,5.51609205,1958.2,1957.3,3.60585338]
[1772442704705,4.23940939,1957.9,1957.2,0.001]
[1772442705190,5.51609205,1958.2,1957.3,3.60218611]
[1772442706078,4.23940939,1958.1,1957.2,0.001]
[1772442706304,4.23940939,1958.0,1957.2,0.001]
[1772442706701,5.80634825,1957.8,1957.2,0.001]
[1772442706901,4.23940939,1957.7,1957.2,0.001]
[1772442707212,4.23940939,1957.7,1957.0,0.00253886]
[1772442707618,4.38285993,1957.4,1957.0,0.00253886]
[1772442707930,4.38285993,1957.7,1957.0,0.00253886]
[1772442708129,2.051,1957.5,1957.0,0.00253886]
[1772442708530,3.61793886,1957.5,1957.0,0.00253886]
[1772442708810,1.27720445,1957.4,1957.0,0.00253886]
[1772442709177,1.27718334,1957.5,1957.0,0.00253886]
[1772442709378,1.27687828,1957.9,1957.0,3.58994753]
[1772442710697,1.2769435,1957.8,1957.0,0.00253886]
[1772442711230,1.27668266,1958.2,1957.2,3.58343514]
[1772442713408,1.27668266,1958.2,1957.3,4.84867009]
[1772442713597,3.32668266,1958.2,1957.3,4.84867009]
[1772442714001,3.32668266,1958.2,1957.3,4.84967009]
[1772442714503,3.32668266,1958.2,1957.3,3.57240039]
[1772442715425,3.32668266,1958.2,1957.4,30.0]
[1772442715800,4.38285993,1958.1,1957.4,30.0]
[1772442716419,1.27668266,1958.2,1957.4,33.55906983]
[1772442716637,1.27971583,1959.0,1957.9,3.55906983]
[1772442716920,0.00353886,1959.0,1957.9,3.55906983]
[1772442717127,0.00353886,1959.0,1958.2,3.55906983]
[1772442717313,0.00353886,1959.0,1958.3,3.55906983]
[1772442717829,0.00353886,1959.0,1958.4,4.80591743]
[1772442718901,0.00353886,1959.0,1958.2,1.27662356]
[1772442719428,0.00353886,1959.0,1957.6,7.30139261]
[1772442719429,4.38639879,1959.0,1957.5,3.54722927]
[1772442719625,6.57631867,1958.8,1957.7,3.54722927]
[1772442719814,1.27635676,1958.7,1957.8,1.2769435]
[1772442720195,1.27635676,1958.7,1957.9,3.54722927]
[1772442720800,1.27635676,1958.7,1957.4,35.10858102]
[1772442720801,4.38285993,1958.6,1957.6,3.54297668]
[1772442721112,5.10494711,1958.9,1957.6,3.54297668]
[1772442721416,4.38285993,1958.8,1957.6,5.26497668]
[1772442721611,4.38285993,1958.8,1957.6,3.53870852]
[1772442721833,1.27635676,1958.7,1957.7,4.81571725]
[1772442722127,1.27635676,1958.7,1957.8,3.53870852]
[1772442723526,5.10496298,1958.9,1957.8,3.53870852]
[1772442724045,4.38285993,1958.9,1957.9,4.80700633]
[1772442724246,4.38285993,1958.9,1958.0,3.53012805]
[1772442726448,5.65915153,1958.8,1957.8,1.27689787]
[1772442726651,5.65915153,1958.8,1957.8,2.99689787]
[1772442727137,5.65915153,1958.8,1957.8,6.51392183]
[1772442727336,4.38285993,1958.3,1957.5,3.51262257]
[1772442727536,4.38285993,1958.3,1957.4,31.27719288]
[1772442727939,4.38285993,1958.3,1957.4,34.78981545]
[1772442728442,1.27661747,1958.3,1957.4,34.78981545]
[1772442728660,4.38285993,1958.0,1957.4,30.0]
[1772442729222,4.38285993,1958.0,1957.4,4.87661338]
[1772442730544,1.27687828,1957.9,1957.4,4.87661338]
[1772442732737,4.38285993,1957.8,1957.4,4.87661338]
[1772442733063,1.27687828,1957.9,1957.4,4.87661338]
[1772442733669,7.14251315,1958.0,1957.4,4.87661338]
[1772442733670,3.31185198,1958.0,1957.4,4.87661338]
[1772442734067,3.31185198,1958.0,1957.4,6.15381685]
[1772442734269,4.38285993,1957.9,1957.4,4.87661338]
[1772442734838,2.19345874,1957.5,1957.2,0.001]
[1772442735039,6.41885993,1957.6,1957.1,0.001]
[1772442735773,1.2769435,1957.8,1957.1,5.48790915]
[1772442736141,1.2769435,1957.8,1957.1,1.27839771]
[1772442736850,1.2769435,1957.8,1957.1,0.001]
[1772442737645,5.6972107,1957.8,1957.1,0.001]
[1772442738066,1.2769435,1957.8,1957.1,4.34373582]
[1772442739062,1.2769435,1957.8,1957.1,5.62108709]
[1772442741781,1.2769435,1957.8,1957.2,0.001]
[1772442741982,0.002,1957.7,1957.2,0.001]
[1772442743958,4.4222672,1957.7,1957.2,0.001]
[1772442745447,4.4222672,1957.7,1957.1,0.001]
[1772442745673,4.4222672,1957.7,1957.1,1.27839685]
[1772442745874,1.27707396,1957.6,1957.1,0.001]
[1772442746077,5.69932348,1957.7,1957.1,0.001]
[1772442746281,4.4202672,1957.6,1957.0,1.28000436]
[1772442747799,4.4202672,1957.6,1957.0,0.00253886]
[1772442747952,1.2771392,1957.5,1957.0,0.00253886]
[1772442749885,5.6974064,1957.5,1957.0,0.00253886]
[1772442750082,4.4202672,1957.4,1957.0,0.00253886]
[1772442750290,2.033,1957.6,1957.0,4.26353414]
[1772442750485,2.033,1957.6,1957.0,0.00253886]
[1772442750788,4.4202672,1957.5,1957.0,0.00253886]
[1772442751979,2.033,1957.6,1957.1,1.27740023]
[1772442752184,0.002,1957.7,1957.1,1.27740023]
[1772442752393,0.002,1957.7,1957.2,4.24710827]
[1772442753486,2.035,1958.6,1957.2,4.23120901]
[1772442753683,7.73172247,1958.6,1957.2,4.23120901]
[1772442753985,7.73172247,1958.6,1957.4,4.23120901]
[1772442754366,4.4202672,1958.5,1957.5,5.93624825]
[1772442754564,4.4202672,1958.5,1957.6,4.22424825]
[1772442755157,4.4202672,1958.5,1957.5,1.712]
[1772442755158,4.4202672,1958.3,1957.5,1.712]
[1772442755467,4.4202672,1958.1,1957.3,4.22424825]
[1772442755652,4.4202672,1958.3,1957.3,4.22424825]
[1772442756056,2.19345874,1958.4,1957.5,4.2174376]
[1772442756057,1.27657298,1958.4,1957.5,4.2174376]
[1772442756684,5.69684018,1958.4,1957.5,4.2174376]
[1772442756904,0.002,1957.7,1957.5,4.2174376]
[1772442758284,0.002,1957.7,1957.6,1.27707396]
[1772442761603,0.002,1957.8,1957.6,5.45063967]
[1772442762171,0.002,1957.8,1957.7,4.17356571]
[1772442762603,0.002,1957.8,1957.7,5.45057444]
[1772442762769,0.002,1957.8,1957.7,1.27700873]
[1772442766704,0.002,1957.8,1957.4,3.00420445]
[1772442767084,0.002,1957.8,1957.4,1.27720445]
[1772442767399,0.002,1957.8,1957.5,1.728]
[1772442768100,0.002,1957.8,1957.5,1.27711657]
[1772442768970,0.002,1957.8,1957.5,3.00711657]
[1772442769171,0.002,1957.8,1957.3,0.001]
[1772442769378,0.002,1957.8,1957.3,1.27823446]
[1772442770376,0.002,1957.7,1957.3,1.27823446]
[1772442770906,0.002,1957.7,1957.4,1.731]
[1772442771615,4.49994213,1957.7,1957.3,0.001]
[1772442772206,5.77695382,1957.7,1957.3,0.001]
[1772442772393,4.49994213,1957.7,1957.3,0.001]
[1772442774919,5.77696718,1957.7,1957.3,0.001]
[1772442775121,4.49794213,1957.6,1957.2,0.001]
[1772442777206,4.49794213,1957.4,1957.0,0.00253886]
[1772442777612,4.49794213,1957.4,1957.0,1.28000302]
[1772442777785,4.49794213,1957.5,1957.0,0.00253886]
[1772442778291,4.49794213,1957.5,1957.0,1.27999572]
[1772442778883,4.49794213,1957.5,1957.0,0.00253886]
[1772442779088,1.27720445,1957.4,1957.0,0.00253886]
[1772442779289,5.77514658,1957.4,1957.0,0.00253886]
[1772442779609,4.49794213,1957.3,1957.0,0.00253886]
[1772442779809,4.49794213,1957.3,1956.9,0.001]
[1772442780882,4.49794213,1957.4,1956.9,0.001]
[1772442781203,5.77521183,1957.3,1956.9,0.001]
[1772442781614,4.49794213,1957.1,1956.4,1.731]
[1772442781816,1.56751777,1957.2,1956.5,4.03673768]
[1772442781817,6.0654599,1957.2,1956.5,4.03673768]
[1772442782110,8.0894599,1957.2,1957.1,0.001]
[1772442782314,4.49794213,1957.1,1956.5,4.03673768]
[1772442782489,4.49794213,1957.1,1956.8,0.001]
[1772442782895,4.49794213,1957.1,1956.3,7.03861859]
[1772442783097,5.77539684,1957.1,1956.3,7.03861859]
[1772442783815,4.49794213,1957.0,1956.3,7.03861859]
[1772442784726,4.49794213,1957.0,1956.3,5.30761859]
[1772442784901,4.49794213,1957.2,1956.4,4.01588621]
[1772442785217,1.56751777,1957.2,1956.6,4.01588621]
[1772442785390,6.0654599,1957.2,1956.6,4.01588621]
[1772442785586,4.49794213,1957.1,1956.5,1.27779197]
[1772442787217,5.77535674,1957.1,1956.5,1.27779197]
[1772442787406,5.77515352,1957.4,1956.6,3.9949033]
[1772442788521,7.34267129,1957.4,1956.6,3.9949033]
[1772442788693,4.49794213,1957.4,1956.6,3.9949033]
[1772442788895,5.7751533,1957.4,1956.6,3.9949033]
[1772442789103,5.7751533,1957.4,1956.5,1.27779197]
[1772442789104,4.49794213,1957.3,1956.5,9.09899962]
[1772442789310,6.0654599,1957.3,1956.6,5.26562]
[1772442789695,4.49794213,1957.2,1956.6,5.26562]
[1772442789997,4.49794213,1957.2,1956.6,1.27771659]
[1772442791311,4.49794213,1957.2,1956.5,5.11109621]
[1772442791507,4.49794213,1957.1,1956.5,1.27779197]
[1772442792330,4.49794213,1956.9,1956.1,1.27800084]
[1772442792632,4.41237921,1957.2,1956.1,1.27800084]
[1772442792633,4.49794213,1957.1,1956.2,3.9599167]
[1772442793016,4.49794213,1957.1,1956.3,3.9599167]
[1772442793422,4.49794213,1956.9,1956.2,6.96387115]
[1772442793621,4.49794213,1956.9,1956.3,3.95291413]
[1772442793924,4.49794213,1956.9,1956.4,0.001]
[1772442794804,1.27945062,1957.1,1956.4,3.94849295]
[1772442794805,5.76589641,1957.1,1956.4,3.94849295]
[1772442795003,4.48844579,1957.1,1956.4,3.94849295]
[1772442795207,4.48644579,1957.0,1956.4,3.94849295]
[1772442795822,4.48644579,1957.0,1956.5,1.27779197]
[1772442796809,4.48644579,1957.0,1956.4,5.22630028]
[1772442797006,5.76391699,1957.0,1956.4,3.94849295]
[1772442797208,5.76391699,1957.0,1956.4,5.22634308]
[1772442797408,1.56751777,1956.5,1956.1,0.001]
[1772442797835,2.84533186,1956.5,1956.1,0.001]
[1772442798017,5.63747559,1956.6,1956.1,0.001]
[1772442798425,5.63744004,1956.6,1956.1,0.001]
[1772442798831,4.35970976,1956.8,1956.1,3.92301816]
[1772442799031,1.27753157,1956.9,1956.1,3.92301816]
[1772442799346,5.63724133,1956.9,1956.1,3.92301816]
[1772442799647,1.27753157,1956.9,1956.1,3.92301816]
[1772442799849,5.63724133,1956.9,1956.2,1.27798793]
[1772442801354,4.35970976,1956.8,1956.2,1.27798793]
[1772442802250,5.63912357,1957.1,1956.3,3.90103838]
[1772442802819,4.35970976,1957.0,1956.3,3.90103838]
[1772442803434,4.35970976,1957.0,1956.3,5.63403838]
[1772442805050,4.35970976,1957.0,1956.4,1.27785728]
[1772442805223,5.63718806,1957.0,1956.4,1.27785728]
[1772442806225,0.002,1957.1,1956.5,3.87312243]
[1772442806942,0.002,1957.1,1956.7,3.86615266]
[1772442807523,0.002,1956.9,1956.7,3.86615266]
[1772442808163,0.002,1956.9,1956.7,1.735]
[1772442808365,0.002,1956.9,1956.8,3.85918923]
[1772442808722,0.002,1956.9,1956.7,1.735]
[1772442808957,0.002,1956.9,1956.6,5.12995762]
[1772442809267,0.002,1956.9,1956.6,3.85223096]
[1772442809522,0.002,1956.9,1956.6,1.736]
[1772442811370,0.002,1956.9,1956.6,3.01368467]
[1772442812958,0.002,1956.9,1956.5,3.82448417]
[1772442813695,5.63877001,1957.7,1956.9,3.81555589]
[1772442813978,5.63872329,1957.7,1957.1,3.81555589]
[1772442814166,4.36170976,1957.7,1957.1,3.81555589]
[1772442814373,0.002,1957.7,1957.1,3.80865405]
[1772442814760,0.002,1957.8,1957.5,3.80865405]
[1772442814956,0.002,1957.8,1957.3,1.741]
[1772442815260,4.35970976,1957.6,1956.9,3.80865405]
[1772442815462,4.35970976,1957.4,1956.7,3.80206347]
[1772442815668,4.41403383,1957.8,1956.7,3.80206347]
[1772442815669,0.002,1957.8,1957.2,3.80206347]
[1772442815978,0.002,1957.8,1957.5,3.80206347]
[1772442816472,0.002,1957.8,1957.3,1.741]
[1772442817278,0.002,1957.8,1956.9,1.27753078]
[1772442817484,0.002,1957.8,1957.1,0.14992987]
[1772442817952,0.002,1957.8,1957.2,1.27733496]
[1772442818148,0.002,1957.8,1957.1,0.14992987]
[1772442818356,4.59246888,1957.2,1956.4,0.14992987]
[1772442820451,5.86963497,1957.5,1956.6,0.13650123]
[1772442820650,5.86963497,1957.5,1956.7,1.739]
[1772442820879,5.86963497,1957.5,1956.7,1.738]
[1772442821851,3.9697557,1957.6,1956.8,0.13050926]
[1772442822056,1.27711859,1957.6,1956.8,0.13050926]
[1772442822580,5.86958747,1957.6,1956.8,0.13050926]
[1772442822882,7.43710524,1957.6,1956.9,1.27753078]
[1772442823085,4.59246888,1957.5,1956.9,1.27753078]
[1772442823760,4.59246888,1957.5,1956.8,1.86750926]
[1772442823761,4.59246888,1957.5,1956.8,3.14505858]
[1772442824972,4.59246888,1957.4,1956.8,3.01454932]
[1772442826449,4.59246888,1957.6,1956.9,0.10051537]
[1772442826654,5.86955018,1957.6,1956.9,0.10051537]
[1772442826879,4.59246888,1957.6,1956.9,0.10051537]
[1772442827076,5.86955157,1957.6,1957.0,1.2774655]
[1772442827979,0.002,1957.7,1957.1,0.09669278]
[1772442829061,0.002,1957.7,1957.2,1.27733496]
[1772442830868,0.002,1957.7,1957.2,3.01433496]
[1772442831069,0.002,1957.7,1957.2,3.09285415]
[1772442832767,0.002,1957.7,1957.3,0.06637083]
[1772442832971,0.002,1957.7,1957.3,1.80437083]
[1772442833690,0.002,1957.6,1957.3,1.80437083]
[1772442833989,0.002,1957.6,1957.2,1.27827495]
[1772442834172,0.002,1957.6,1957.2,3.01627495]
[1772442835267,0.002,1957.6,1957.2,3.01727495]
[1772442837693,0.002,1957.6,1957.2,1.27827495]
[1772442837872,0.002,1957.6,1957.2,3.01927495]
[1772442838395,0.002,1957.6,1957.3,0.02988994]
[1772442838595,4.59346888,1959.5,1957.6,0.02788994]
[1772442838795,4.59346888,1959.5,1957.8,0.02788994]
[1772442838796,4.59346888,1958.8,1957.8,0.02788994]
[1772442839297,4.59346888,1958.8,1957.9,1.76888994]
[1772442839596,4.59346888,1958.8,1958.0,1.561]
[1772442839800,4.59346888,1958.8,1958.0,1.7]
[1772442839972,4.59346888,1958.8,1958.0,1.72181859]
[1772442840565,5.86982564,1958.7,1958.0,0.02181859]
[1772442840771,4.59346888,1958.6,1957.6,1.3305216]
[1772442841892,4.62021124,1958.4,1957.6,0.77480549]
[1772442842267,0.00153886,1958.0,1957.6,0.77480549]
[1772442842469,4.62021124,1958.4,1957.6,0.77480549]
[1772442842665,1.27661747,1958.3,1957.1,2.19408838]
[1772442842871,4.62021124,1958.0,1957.1,1.2773707]
[1772442843397,4.62021124,1958.0,1957.2,0.89248151]
[1772442844167,4.62021124,1958.0,1957.0,1.2789996]
[1772442844788,4.62021124,1957.8,1957.0,1.2789996]
[1772442844989,4.62021124,1957.8,1957.0,0.00153886]
[1772442847699,1.27700873,1957.7,1957.2,0.001]
[1772442848684,4.62021124,1957.6,1957.2,0.001]
[1772442849901,5.89733296,1957.6,1957.2,0.001]
[1772442852408,1.27712172,1957.6,1957.2,0.001]
[1772442853009,5.89733296,1957.6,1957.2,0.001]
[1772442853205,4.62021124,1957.5,1957.0,0.00253886]
[1772442854483,1.27720445,1957.4,1957.0,0.00253886]
[1772442855510,5.8973906,1957.5,1957.0,0.00253886]
[1772442856584,9.30917883,1957.7,1957.0,0.78815691]
[1772442856783,7.38877886,1957.8,1957.0,0.78815691]
[1772442856784,1.27697908,1957.8,1957.0,0.78815691]
[1772442857507,8.16568624,1957.9,1957.0,0.78815691]
[1772442859385,8.16568624,1957.9,1957.1,2.04781071]
[1772442861413,5.0046197,1957.8,1957.1,2.04781071]
[1772442861814,5.0046197,1957.8,1957.1,2.04881071]
[1772442862202,5.0046197,1957.8,1957.1,0.001]
[1772442862396,5.0046197,1957.8,1957.1,1.27839934]
[1772442863486,6.28162843,1957.7,1957.1,0.001]
[1772442863892,5.0046197,1957.6,1957.1,0.001]
[1772442866341,1.27700873,1957.7,1957.1,0.71283701]
[1772442867828,6.28162843,1957.7,1957.1,0.71283701]
[1772442870053,1.27700873,1957.7,1957.1,0.001]
[1772442870339,6.2817589,1957.5,1957.1,0.001]
[1772442870527,5.0046197,1957.7,1957.1,0.67127452]
[1772442871513,6.28162877,1957.7,1957.1,0.67127452]
[1772442872109,6.28163287,1957.7,1957.1,0.67127452]
[1772442873232,6.28163287,1957.7,1957.2,1.27733496]
[1772442873742,6.28163287,1957.7,1957.2,1.92278408]
[1772442873940,5.0046197,1957.7,1957.2,1.92278408]
[1772442874522,6.2816288,1957.7,1957.2,1.92278408]
[1772442876343,1.27899147,1957.8,1957.3,0.62892972]
[1772442876947,6.28361117,1957.8,1957.3,0.62892972]
[1772442879722,5.0046197,1957.7,1957.3,0.62892972]
[1772442880743,5.0046197,1957.5,1957.1,0.001]
[1772442880929,1.27898731,1957.8,1957.2,0.58779458]
[1772442881423,6.28360701,1957.8,1957.2,0.58779458]
[1772442883150,6.28360701,1957.8,1957.2,1.86510103]
[1772442884953,6.28360701,1957.8,1957.3,0.54930017]
[1772442886653,6.28360701,1957.8,1957.3,0.55030017]
[1772442887025,0.002,1957.7,1957.3,0.55030017]
[1772442888362,4.74151364,1957.7,1957.3,0.55030017]
[1772442889075,6.76251364,1957.6,1957.3,0.001]
[1772442889269,2.023,1957.6,1957.3,0.51198768]
[1772442891421,3.30007623,1957.6,1957.3,0.51198768]
[1772442891860,2.023,1957.6,1957.3,0.51198768]
[1772442892030,6.01856924,1957.7,1957.3,0.51198768]
[1772442893059,4.73951364,1957.6,1957.3,0.001]
[1772442894565,6.76751364,1957.7,1957.3,0.45572427]
[1772442894730,8.04452829,1957.7,1957.3,0.45572427]
[1772442896342,4.73951364,1957.6,1957.3,0.001]
[1772442897144,6.01659215,1957.6,1957.3,0.001]
[1772442898575,4.73951364,1957.5,1957.3,0.001]
[1772442900341,4.73951364,1957.4,1957.2,0.001]
[1772442901661,6.77151364,1957.4,1957.2,0.001]
[1772442901848,2.032,1957.4,1957.2,0.39235887]
[1772442902048,2.032,1957.4,1957.2,0.001]
[1772442902376,0.002,1957.7,1957.4,0.39135887]
[1772442904056,0.002,1957.7,1957.4,1.66853866]
[1772442904270,0.002,1957.7,1957.5,0.37326252]
[1772442905676,0.002,1957.7,1957.5,1.65039157]
[1772442906073,0.002,1957.7,1957.5,0.37326252]
[1772442906777,0.002,1957.7,1957.5,1.65040142]
[1772442907951,0.002,1957.7,1957.5,0.37326252]
[1772442908388,0.002,1957.7,1957.5,1.65039386]
[1772442908899,0.002,1957.7,1957.2,0.001]
[1772442908900,5.05487169,1957.6,1957.2,0.001]
[1772442909052,0.31335805,1957.3,1957.0,0.00253886]
[1772442909373,4.73951364,1957.4,1957.0,1.27999749]
[1772442909577,0.002,1957.3,1957.0,1.59933672]
[1772442910878,0.002,1957.3,1957.0,0.32187809]
[1772442911075,4.74151364,1957.2,1957.0,0.00253886]
[1772442911464,0.002,1957.1,1957.0,0.00253886]
[1772442914631,4.73951364,1957.2,1957.0,0.00253886]
[1772442914793,0.002,1957.1,1957.0,0.00253886]
[1772442914966,4.73951364,1957.2,1956.8,1.55362647]
[1772442916296,4.62309412,1957.1,1956.8,0.001]
[1772442916492,4.93645217,1957.1,1956.8,0.001]
[1772442916687,4.62309412,1957.1,1956.8,0.001]
[1772442917674,4.61921124,1957.3,1956.9,0.2487727]
[1772442917872,5.89635091,1957.5,1957.0,0.2487727]
[1772442918070,4.61921124,1957.4,1957.0,0.2487727]
[1772442918599,4.61921124,1957.4,1956.8,1.51866614]
[1772442918981,4.61921124,1957.4,1956.9,0.24007199]
[1772442919697,4.93256929,1957.3,1956.8,1.27859415]
[1772442919898,4.93256929,1957.3,1956.8,0.001]
[1772442920805,4.93256929,1957.3,1956.8,0.22377591]
[1772442921103,4.61921124,1957.3,1956.8,0.22377591]
[1772442921271,3.31212435,1957.6,1956.8,0.22377591]
[1772442921477,4.61921124,1957.5,1956.8,0.22377591]
[1772442922600,0.31335805,1957.3,1956.9,1.27753078]
[1772442922905,4.61921124,1957.2,1956.9,1.27753078]
[1772442923201,4.61921124,1957.2,1956.8,1.27854395]
[1772442924900,4.61921124,1957.1,1956.8,0.001]
[1772442925090,4.93256929,1957.1,1956.8,0.001]
[1772442925410,4.93256929,1957.1,1956.6,0.001]
[1772442925411,4.61921124,1956.9,1956.6,0.001]
[1772442926206,4.61921124,1956.9,1956.8,0.001]
[1772442927519,4.93256929,1957.1,1956.8,0.001]
[1772442927683,4.61921124,1957.1,1956.8,0.001]
[1772442928628,6.96756929,1957.3,1956.8,0.15549939]
[1772442928789,6.20983933,1957.3,1956.8,1.43309419]
[1772442928983,4.61921124,1957.2,1956.8,1.43309419]
[1772442930311,4.61921124,1957.2,1956.8,1.2785948]
[1772442930481,1.59062809,1957.3,1956.8,0.001]
[1772442930683,0.002,1957.6,1957.3,0.13766303]
[1772442930923,0.002,1957.6,1957.4,0.45102108]
[1772442931228,0.002,1957.6,1957.4,0.13766303]
[1772442932091,0.002,1957.7,1957.6,0.06714591]
[1772442932289,1.27927004,1957.7,1957.6,0.06714591]
[1772442935291,2.55627877,1957.7,1957.6,0.06714591]
[1772442935492,1.27927004,1957.7,1957.6,0.06714591]
[1772442936601,4.61921124,1957.6,1956.9,5.11006336]
[1772442936798,1.27727004,1957.6,1957.1,0.15317315]
[1772442938248,1.27927004,1957.6,1957.1,0.15317315]
[1772442938528,0.002,1957.6,1957.5,0.001]
[1772442938695,1.27927004,1957.6,1957.5,0.001]
[1772442939896,7.17555524,1957.6,1957.5,0.001]
[1772442940114,2.556344,1957.6,1957.5,0.001]
[1772442940314,7.17555524,1957.6,1957.2,0.12987587]
[1772442940515,1.27727004,1957.5,1957.3,0.12149379]
[1772442940831,1.27727004,1957.5,1957.3,1.39874124]
[1772442942526,1.27727004,1957.5,1957.3,0.12149379]
[1772442942730,1.27727004,1957.5,1957.3,1.39876017]
[1772442943098,1.27727004,1957.5,1957.2,1.27729068]
[1772442943297,4.62121124,1957.6,1957.2,0.10230166]
[1772442943512,1.27727004,1957.5,1957.2,0.10230166]
[1772442943707,1.17565833,1957.5,1957.1,1.27734835]
[1772442943913,1.17565833,1957.5,1957.2,0.09276518]
[1772442944126,0.002,1957.6,1957.2,0.09276518]
[1772442945129,0.002,1957.6,1957.4,0.08322889]
[1772442946226,1e-08,1957.8,1957.4,0.11129712]
[1772442946914,1e-08,1957.8,1957.6,0.10173521]
[1772442949037,1e-08,1957.8,1957.7,1.35858091]
[1772442950152,4.3046439,1958.2,1957.8,4.62886257]
[1772442951143,5.58113254,1958.5,1957.8,4.62886257]
[1772442951449,5.58113254,1958.5,1958.0,4.62886257]
[1772442951946,4.3046439,1958.4,1958.0,4.62886257]
[1772442952948,4.3046439,1958.4,1957.9,1.27687828]
[1772442953123,4.3046439,1958.4,1957.8,1.27690285]
[1772442953449,4.3046439,1958.2,1957.8,1.27690285]
[1772442953616,4.3046439,1958.2,1957.8,5.90576542]
[1772442956250,4.3046439,1958.4,1957.9,4.62886257]
[1772442959117,4.3046439,1958.4,1957.7,5.4220414]
[1772442959118,4.3046439,1958.0,1957.7,0.001]
[1772442959322,4.3046439,1957.8,1957.7,0.001]
[1772442960123,4.3046439,1957.8,1957.5,0.001]
[1772442960124,4.3046439,1957.8,1957.5,1.27813241]
[1772442960326,4.3046439,1958.0,1957.5,5.90699498]
[1772442960538,4.3046439,1958.2,1957.7,5.09877359]
[1772442960738,4.3046439,1958.2,1957.7,4.62886257]
[1772442961165,4.3046439,1958.2,1957.8,1.2769435]
[1772442961652,7.61923322,1958.4,1957.8,5.90580607]
[1772442961957,4.3046439,1958.3,1957.8,5.90580607]
[1772442963052,5.58126728,1958.3,1957.8,5.90580607]
[1772442963258,4.3046439,1958.2,1957.7,1.27698102]
[1772442963686,4.3046439,1958.2,1957.7,1.27798102]
[1772442964043,0.002,1957.8,1957.7,1.27798102]
[1772442964375,0.002,1957.8,1957.7,5.90684359]
[1772442964961,0.002,1958.0,1957.8,4.62886257]
[1772442965150,4.3046439,1958.4,1957.9,1.27687828]
[1772442965364,4.3046439,1958.4,1957.9,5.90574085]
[1772442965568,4.3046439,1958.8,1958.0,4.62886257]
[1772442965874,2.038,1958.9,1958.1,5.09877359]
[1772442965875,5.58087052,1958.9,1958.1,5.09877359]
[1772442966272,4.3046439,1958.9,1958.1,5.09877359]
[1772442966474,4.3046439,1958.9,1958.1,4.62886257]
[1772442967266,1.27774581,1959.0,1958.1,4.62886257]
[1772442967267,0.00153886,1959.0,1958.3,4.62886257]
[1772442967466,0.00153886,1959.0,1958.5,4.62886257]
[1772442968137,4.30618276,1959.0,1958.2,1.27668266]
[1772442968449,4.30618276,1959.0,1958.3,4.62886257]
[1772442969151,4.30618276,1959.0,1958.4,1.27655228]
[1772442969448,4.30618276,1959.0,1958.5,4.62886257]
[1772442970150,0.00153886,1959.0,1958.5,4.62886257]
[1772442971354,0.00153886,1959.0,1958.6,7.6262845]
[1772442972978,4.30618276,1959.0,1958.4,5.90535218]
[1772442973174,4.30618276,1959.0,1958.4,3.00048961]
[1772442973372,4.30618276,1959.0,1958.4,7.62935218]
[1772442973554,4.30618276,1959.0,1958.5,4.62886257]
[1772442975177,4.4741879,1958.9,1958.4,7.29020884]
[1772442975649,4.4741879,1958.9,1958.4,7.29120884]
[1772442976050,4.47572676,1959.0,1958.4,7.29120884]
[1772442976276,0.002,1958.9,1958.5,4.28971923]
[1772442976477,6.5081879,1959.5,1958.6,4.28971923]
[1772442976778,0.002,1959.2,1958.8,4.28971923]
[1772442977878,4.23694256,1959.1,1958.4,7.41956303]
[1772442978179,0.002,1959.2,1958.5,4.41701075]
[1772442979707,0.002,1959.2,1958.7,4.41701075]
[1772442979862,0.002,1959.2,1958.9,4.41701075]
[1772442980481,4.23694256,1959.1,1958.4,4.41701075]
[1772442980674,4.23694256,1959.1,1958.5,1.727]
[1772442980977,4.23694256,1959.1,1958.5,6.14401075]
[1772442981878,0.002,1959.2,1958.7,4.41701075]
[1772442982856,5.10323667,1959.6,1958.8,4.41701075]
[1772442982857,4.23694256,1959.6,1958.8,4.41701075]
[1772442983055,4.23694256,1959.6,1958.7,2.1913198]
[1772442983056,4.23694256,1959.6,1959.0,4.41701075]
[1772442983471,4.23694256,1959.6,1958.7,4.41701075]
[1772442983472,4.23694256,1959.5,1958.7,4.41701075]
[1772442983660,5.51283728,1959.5,1958.9,1.27622645]
[1772442984068,5.10308226,1959.8,1959.1,4.41701075]
[1772442984270,1.53143776,1961.0,1959.3,4.41701075]
[1772442984271,4.23694256,1960.7,1959.3,4.41701075]
[1772442984470,5.10308226,1960.0,1959.3,4.41701075]
[1772442984664,4.23694256,1960.1,1959.3,4.41701075]
[1772442985384,5.10308226,1960.0,1959.3,4.41701075]
[1772442985784,5.10308226,1960.0,1959.5,4.41701075]
[1772442988191,5.10308226,1960.0,1959.6,5.69278131]
[1772442988500,0.002,1959.9,1959.7,4.41701075]
[1772442989396,5.10308226,1959.8,1959.6,1.27577056]
[1772442989983,4.23694256,1959.8,1959.3,1.2759659]
[1772442990196,5.10308226,1959.7,1959.3,1.2759659]
[1772442990773,5.10308226,1959.7,1959.3,5.69297665]
[1772442991185,0.002,1959.9,1959.3,5.69297665]
[1772442991790,4.23694256,1959.8,1959.2,1.27599515]
[1772442992001,4.23694256,1959.8,1959.1,5.69306288]
[1772442992274,4.23694256,1959.7,1959.1,5.69306288]
[1772442992471,2.026,1959.6,1959.1,5.69306288]
[1772442994981,4.23694256,1959.8,1959.2,4.41701075]
[1772442995979,6.26194256,1959.8,1959.2,4.41701075]
[1772442996174,0.002,1959.9,1959.2,4.41701075]
[1772442996397,0.002,1959.9,1959.4,4.41701075]
[1772442998007,4.23894256,1959.9,1959.3,1.2759659]